bitfinex/quotes_SOLUSD_20220218
["timestamp","ask_amount","ask_price","bid_price","bid_amount"]
[1645199096069,11.726,91.347,91.251,110.1]
[1645199096469,6.25,91.347,91.251,110.1]
[1645199098474,6.25,91.347,91.25,16.436]
[1645199098673,5.476,91.346,91.26,16.4358]
[1645199098872,6.25,91.345,91.26,16.4358]
[1645199099072,0.25,91.345,91.26,16.4358]
[1645199099273,0.25,91.345,91.261,110.1]
[1645199099473,0.25,91.345,91.262,0.25]
[1645199099678,5.476,91.367,91.262,0.25]
[1645199099873,6.0,91.366,91.281,110.1]
[1645199100076,6.0,91.378,91.282,0.25]
[1645199100276,6.0,91.387,91.282,2.8793831]
[1645199100575,46.75273825,91.386,91.283,52.99059749]
[1645199100773,11.474,91.385,91.284,110.35]
[1645199100976,11.474,91.385,91.29,16.4312]
[1645199101378,0.25,91.384,91.29,16.4312]
[1645199101576,5.474,91.383,91.29,16.4312]
[1645199101776,5.474,91.383,91.283,52.99059749]
[1645199101777,110.1,91.381,91.283,52.99059749]
[1645199101977,16.436,91.37,91.283,52.99059749]
[1645199102274,48.57149478,91.367,91.283,52.99059749]
[1645199102581,11.724,91.366,91.283,52.99059749]
[1645199102775,14.3533831,91.366,91.283,52.99059749]
[1645199102975,2.6293831,91.365,91.283,52.99059749]
[1645199103174,11.724,91.364,91.283,52.99059749]
[1645199103977,11.724,91.364,91.284,110.1]
[1645199104175,6.25,91.364,91.285,0.25]
[1645199104376,0.25,91.364,91.285,0.25]
[1645199104576,6.0,91.381,91.285,0.25]
[1645199104975,16.4306,91.39,91.285,0.25]
[1645199104976,6.0,91.386,91.285,0.25]
[1645199105379,48.18441297,91.385,91.302,39.61919025]
[1645199105576,6.0,91.384,91.303,110.35]
[1645199105979,0.25,91.383,91.303,110.35]
[1645199106578,6.0,91.384,91.31,16.4272]
[1645199106778,6.0,91.384,91.311,110.1]
[1645199106979,6.0,91.399,91.311,110.35]
[1645199107181,6.0,91.404,91.311,110.1]
[1645199107381,1.48789033,91.411,91.312,0.25]
[1645199107577,1.48789033,91.411,91.341,110.1]
[1645199107788,1.48789033,91.426,91.342,0.25]
[1645199107979,1.48789033,91.434,91.342,0.25]
[1645199108182,1.48789033,91.436,91.342,0.25]
[1645199108383,1.48789033,91.436,91.303,102.0483]
[1645199108384,2.08788185,91.284,91.2,7.0]
[1645199108582,2.08788185,91.284,91.14,73.5707]
[1645199108884,173.12,91.43,91.13,5.7159445]
[1645199108885,11.48,91.283,91.13,5.7159445]
[1645199109080,5.48,91.283,91.13,5.7159445]
[1645199109281,6.0,91.282,91.13,12.82]
[1645199109481,6.0,91.282,91.131,87.46973957]
[1645199109482,5.482,91.281,91.131,87.46973957]
[1645199109682,6.0,91.28,91.138,110.1]
[1645199109982,0.25,91.279,91.153,110.1]
[1645199110184,0.25,91.279,91.161,110.1]
[1645199110391,6.0,91.301,91.154,47.3594]
[1645199110392,5.481,91.278,91.154,47.3594]
[1645199110583,6.25,91.285,91.154,47.3594]
[1645199110584,6.25,91.277,91.154,47.3594]
[1645199110785,5.75,91.277,91.155,110.1]
[1645199110986,5.75,91.277,91.161,110.1]
[1645199111189,0.25,91.277,91.161,110.1]
[1645199111586,16.4502,91.29,91.162,2.6293831]
[1645199111892,5.73,91.289,91.162,2.6293831]
[1645199112086,0.25,91.289,91.162,2.6293831]
[1645199112487,0.25,91.289,91.154,47.3594]
[1645199112689,1.48789033,91.283,91.154,47.3594]
[1645199112892,6.25,91.282,91.16,12.82]
[1645199113290,6.0,91.282,91.161,2.6293831]
[1645199113587,6.0,91.301,91.161,112.7293831]
[1645199113789,6.0,91.305,91.163,110.1]
[1645199113987,6.0,91.305,91.164,0.25]
[1645199114188,5.48,91.304,91.164,2.8793831]
[1645199114389,6.0,91.303,91.164,2.8793831]
[1645199114589,5.48,91.302,91.165,2.6293831]
[1645199114789,1.48789033,91.314,91.181,110.1]
[1645199114988,5.479,91.313,91.183,110.1]
[1645199115189,4.979,91.314,91.184,0.25]
[1645199115395,110.1,91.309,91.182,70.29320042]
[1645199115588,111.58789033,91.307,91.182,70.29320042]
[1645199115788,1.48789033,91.3,91.182,70.29320042]
[1645199115989,110.1,91.289,91.182,70.29320042]
[1645199116189,12.82,91.29,91.182,70.29320042]
[1645199116190,110.1,91.287,91.182,70.29320042]
[1645199116390,121.83,91.286,91.182,70.29320042]
[1645199116590,110.1,91.284,91.182,70.29320042]
[1645199116790,110.1,91.279,91.182,70.29320042]
[1645199116989,110.1,91.277,91.182,47.02430042]
[1645199117191,12.82,91.28,91.182,47.02430042]
[1645199117192,5.0,91.272,91.182,47.02430042]
[1645199117391,5.0,91.242,91.182,47.02430042]
[1645199117593,5.481,91.241,91.182,47.02430042]
[1645199117793,6.25,91.24,91.182,47.02430042]
[1645199117993,5.481,91.239,91.182,47.02430042]
[1645199118191,6.25,91.238,91.182,47.02430042]
[1645199118391,5.481,91.237,91.182,47.02430042]
[1645199118591,6.25,91.236,91.182,47.02430042]
[1645199118789,5.481,91.235,91.182,47.02430042]
[1645199118990,6.25,91.234,91.182,47.02430042]
[1645199119190,5.481,91.233,91.182,47.02430042]
[1645199119390,6.25,91.232,91.182,47.02430042]
[1645199119997,6.0,91.238,91.182,47.02430042]
[1645199120297,6.0,91.237,91.182,47.02430042]
[1645199120499,6.0,91.258,91.182,47.02430042]
[1645199120797,110.1,91.277,91.182,47.02430042]
[1645199120995,110.1,91.275,91.182,47.02430042]
[1645199121196,110.1,91.273,91.182,47.02430042]
[1645199121397,16.4548,91.26,91.182,47.02430042]
[1645199121599,11.481,91.259,91.182,47.02430042]
[1645199121800,6.0,91.259,91.182,47.02430042]
[1645199122199,6.0,91.278,91.183,110.1]
[1645199122403,6.0,91.278,91.184,110.35]
[1645199122602,6.0,91.292,91.184,110.35]
[1645199122801,11.48,91.299,91.186,110.1]
[1645199123003,11.48,91.299,91.187,0.25]
[1645199123401,110.1,91.298,91.185,24.0059]
[1645199123601,11.479,91.297,91.185,24.0059]
[1645199123803,6.0,91.296,91.185,24.0059]
[1645199124004,116.1,91.296,91.185,24.0059]
[1645199124202,5.48,91.295,91.185,24.0059]
[1645199124403,6.0,91.294,91.185,24.0059]
[1645199124603,5.0,91.282,91.182,47.02430042]
[1645199124803,110.1,91.269,91.182,47.02430042]
[1645199125002,110.1,91.267,91.182,47.02430042]
[1645199125202,121.83,91.266,91.182,47.02430042]
[1645199125505,11.73,91.266,91.182,47.02430042]
[1645199126507,110.1,91.259,91.182,47.02430042]
[1645199126703,65.1,91.257,91.182,47.02430042]
[1645199126905,11.731,91.256,91.182,47.02430042]
[1645199127106,5.731,91.256,91.182,47.02430042]
[1645199127306,6.0,91.255,91.182,47.02430042]
[1645199127505,5.731,91.254,91.182,47.02430042]
[1645199127707,6.0,91.253,91.182,47.02430042]
[1645199127906,0.25,91.252,91.182,47.02430042]
[1645199128905,5.731,91.255,91.182,47.02430042]
[1645199129111,6.0,91.254,91.182,47.02430042]
[1645199129305,5.731,91.253,91.182,47.02430042]
[1645199129505,6.0,91.252,91.182,47.02430042]
[1645199129706,0.25,91.251,91.182,47.02430042]
[1645199130922,0.25,91.258,91.182,47.02430042]
[1645199131125,5.481,91.257,91.182,47.02430042]
[1645199131325,0.25,91.256,91.182,47.02430042]
[1645199131523,5.481,91.255,91.182,47.02430042]
[1645199131723,6.25,91.254,91.182,47.02430042]
[1645199131923,5.481,91.253,91.182,47.02430042]
[1645199132125,6.25,91.252,91.182,47.02430042]
[1645199132724,6.0,91.251,91.182,47.02430042]
[1645199133023,0.25,91.25,91.182,47.02430042]
[1645199133229,5.481,91.249,91.182,47.02430042]
[1645199133423,110.1,91.247,91.182,47.02430042]
[1645199133624,6.25,91.248,91.182,47.02430042]
[1645199133625,121.831,91.246,91.182,47.02430042]
[1645199133824,0.25,91.245,91.182,47.02430042]
[1645199134023,5.481,91.244,91.182,47.02430042]
[1645199134227,6.25,91.243,91.182,47.02430042]
[1645199134425,5.481,91.242,91.182,47.02430042]
[1645199134623,6.25,91.241,91.182,47.02430042]
[1645199134823,5.481,91.24,91.182,47.02430042]
[1645199135023,6.25,91.239,91.182,47.02430042]
[1645199135227,5.481,91.238,91.182,47.02430042]
[1645199135425,6.0,91.237,91.182,47.02430042]
[1645199135626,6.0,91.239,91.182,47.02430042]
[1645199136126,6.0,91.27,91.182,47.02430042]
[1645199136425,16.4545,91.26,91.182,47.02430042]
[1645199136624,11.481,91.259,91.182,47.02430042]
[1645199136824,0.25,91.258,91.182,47.02430042]
[1645199137024,5.481,91.257,91.182,47.02430042]
[1645199137224,6.25,91.256,91.182,47.02430042]
[1645199137425,5.481,91.255,91.182,47.02430042]
[1645199137626,6.25,91.254,91.182,47.02430042]
[1645199137825,5.481,91.253,91.182,47.02430042]
[1645199138126,6.25,91.252,91.182,47.02430042]
[1645199138331,5.481,91.251,91.182,47.02430042]
[1645199138536,6.25,91.25,91.182,47.02430042]
[1645199138734,5.481,91.249,91.182,47.02430042]
[1645199139039,1.48789033,91.247,91.182,47.02430042]
[1645199139238,1.48789033,91.245,91.182,47.02430042]
[1645199139437,6.0,91.244,91.182,47.02430042]
[1645199139637,6.0,91.246,91.182,47.02430042]
[1645199139837,5.481,91.245,91.182,47.02430042]
[1645199140037,1.48789033,91.243,91.182,47.02430042]
[1645199140238,116.1,91.246,91.182,47.02430042]
[1645199140239,1.48789033,91.241,91.182,47.02430042]
[1645199140443,12.96889033,91.24,91.182,47.02430042]
[1645199140637,0.25,91.239,91.182,47.02430042]
[1645199140841,16.4604,91.23,91.151,22.7002]
[1645199141050,11.732,91.229,91.151,22.7002]
[1645199141240,11.732,91.229,91.121,16.7254]
[1645199141241,110.1,91.228,91.121,16.7254]
[1645199141440,11.732,91.229,91.121,16.7254]
[1645199141441,110.1,91.226,91.121,16.7254]
[1645199141638,11.732,91.227,91.113,24.2567]
[1645199141639,110.1,91.224,91.113,24.2567]
[1645199141841,110.1,91.222,91.114,39.47711203]
[1645199142038,11.734,91.223,91.114,39.47711203]
[1645199142039,110.1,91.209,91.114,39.47711203]
[1645199142242,5.0,91.202,91.114,39.47711203]
[1645199142440,110.1,91.2,91.114,39.47711203]
[1645199142639,110.1,91.198,91.114,39.47711203]
[1645199142841,110.1,91.196,91.114,39.47711203]
[1645199143040,11.735,91.195,91.114,39.47711203]
[1645199143644,110.1,91.194,91.114,39.47711203]
[1645199143841,115.1,91.192,91.114,39.47711203]
[1645199144041,110.1,91.19,91.114,39.47711203]
[1645199144240,11.735,91.189,91.114,39.47711203]
[1645199144440,5.735,91.189,91.114,39.47711203]
[1645199144642,6.0,91.188,91.114,39.47711203]
[1645199144842,0.25,91.187,91.114,39.47711203]
[1645199145042,5.485,91.186,91.114,39.47711203]
[1645199145242,6.25,91.185,91.114,39.47711203]
[1645199145443,5.485,91.184,91.114,39.47711203]
[1645199145646,6.0,91.183,91.114,39.47711203]
[1645199145842,5.485,91.182,91.114,39.47711203]
[1645199146044,6.0,91.181,91.114,39.47711203]
[1645199146246,6.0,91.183,91.114,39.47711203]
[1645199146645,6.0,91.189,91.114,39.47711203]
[1645199146844,0.25,91.188,91.114,39.47711203]
[1645199147246,6.0,91.189,91.114,39.47711203]
[1645199147844,5.485,91.188,91.114,39.47711203]
[1645199148047,6.0,91.187,91.114,39.47711203]
[1645199148346,5.485,91.186,91.114,39.47711203]
[1645199148546,6.25,91.185,91.114,39.47711203]
[1645199148748,5.485,91.184,91.114,39.47711203]
[1645199148948,6.25,91.183,91.114,39.47711203]
[1645199149149,5.485,91.182,91.114,39.47711203]
[1645199149350,6.25,91.181,91.114,38.97711203]
[1645199149549,5.485,91.18,91.114,38.97711203]
[1645199149751,6.25,91.179,91.114,38.97711203]
[1645199149952,5.485,91.178,91.114,38.97711203]
[1645199150154,6.25,91.177,91.114,38.97711203]
[1645199150354,5.485,91.176,91.114,38.97711203]
[1645199150555,6.25,91.175,91.114,38.97711203]
[1645199150754,5.485,91.174,91.114,38.97711203]
[1645199150955,6.25,91.173,91.114,38.97711203]
[1645199151155,5.485,91.172,91.114,38.97711203]
[1645199151360,6.25,91.171,91.114,38.97711203]
[1645199151756,5.485,91.17,91.114,38.97711203]
[1645199151957,6.25,91.169,91.114,38.97711203]
[1645199152557,0.25,91.169,91.114,38.97711203]
[1645199152758,0.25,91.169,91.074,16.7549]
[1645199153059,0.25,91.169,90.971,5.0]
[1645199153060,174.62,91.167,91.051,45.5722]
[1645199153258,5.0,91.142,91.051,45.5722]
[1645199153467,110.1,91.14,91.032,24.6008]
[1645199153663,11.738,91.141,91.029,45.67541587]
[1645199153664,5.0,91.112,91.029,45.67541587]
[1645199153871,5.74,91.111,91.029,45.67541587]
[1645199154063,18.82,91.11,91.029,45.67541587]
[1645199154266,115.84,91.109,91.029,45.67541587]
[1645199154463,110.1,91.107,91.029,45.67541587]
[1645199154665,121.84,91.106,91.029,45.67541587]
[1645199154869,0.25,91.105,91.029,45.67541587]
[1645199155066,5.0,91.102,91.017,16.2173]
[1645199155269,12.82,91.09,90.995,47.334]
[1645199155470,5.0,91.082,90.995,47.334]
[1645199155667,110.1,91.08,90.995,47.334]
[1645199155867,11.742,91.079,90.995,47.334]
[1645199156066,5.742,91.079,90.996,48.55932335]
[1645199156266,6.0,91.078,90.996,48.55932335]
[1645199156666,5.492,91.077,90.996,48.55932335]
[1645199156866,6.0,91.076,90.996,48.55932335]
[1645199157082,5.492,91.075,90.996,48.55932335]
[1645199157283,6.0,91.074,90.996,48.55932335]
[1645199157482,5.492,91.073,90.996,48.55932335]
[1645199157681,6.25,91.072,90.996,48.55932335]
[1645199157882,16.4879,91.07,90.996,48.55932335]
[1645199158084,6.25,91.069,90.996,48.55932335]
[1645199158283,11.742,91.069,90.996,48.55932335]
[1645199159095,6.25,91.069,90.996,48.55932335]
[1645199159583,0.25,91.069,90.996,48.55932335]
[1645199159783,0.25,91.087,90.996,48.55932335]
[1645199159983,5.492,91.097,90.996,48.55932335]
[1645199160385,5.49,91.109,90.997,0.25]
[1645199160589,5.49,91.119,90.997,0.25]
[1645199160785,5.49,91.119,90.996,65.04302335]
[1645199160987,5.0,91.102,90.996,48.55932335]
[1645199161187,12.82,91.09,90.996,48.55932335]
[1645199161488,5.49,91.089,90.996,48.55932335]
[1645199161688,6.25,91.088,90.996,48.55932335]
[1645199161887,5.0,91.082,90.996,48.55932335]
[1645199162088,12.82,91.08,90.996,48.55932335]
[1645199162288,16.4881,91.07,90.996,48.55932335]
[1645199162487,11.742,91.069,90.996,48.55932335]
[1645199163691,11.492,91.069,90.996,48.55932335]
[1645199163891,6.0,91.069,90.996,48.55932335]
[1645199164091,5.492,91.068,90.996,48.55932335]
[1645199164295,6.0,91.067,90.996,48.55932335]
[1645199164491,16.4908,91.06,90.996,48.55932335]
[1645199164692,6.0,91.059,90.996,48.55932335]
[1645199164892,6.0,91.059,90.995,47.334]
[1645199165093,0.25,91.058,90.995,47.334]
[1645199165892,0.25,91.058,90.996,40.49722147]
[1645199166291,16.4914,91.05,90.996,40.49722147]
[1645199166497,6.25,91.049,90.996,40.49722147]
[1645199166693,5.493,91.048,90.996,40.49722147]
[1645199166896,6.0,91.047,90.996,40.49722147]
[1645199167503,16.4868,91.08,90.996,40.49722147]
[1645199167504,6.0,91.069,90.996,40.49722147]
[1645199167704,6.0,91.078,90.996,40.49722147]
[1645199167896,5.492,91.077,90.996,40.49722147]
[1645199168198,6.0,91.076,90.996,40.49722147]
[1645199168395,5.492,91.075,90.996,40.49722147]
[1645199168599,5.492,91.102,90.982,16.1109]
[1645199168795,5.492,91.079,90.982,16.1109]
[1645199168996,5.492,91.079,90.881,39.5281]
[1645199168997,5.0,91.062,90.881,39.5281]
[1645199169201,12.82,91.05,90.882,5.495]
[1645199169499,5.496,91.049,90.901,110.1]
[1645199169697,16.4971,91.03,90.903,110.1]
[1645199169896,6.0,91.029,90.903,110.1]
[1645199170098,5.496,91.039,90.903,110.1]
[1645199170300,11.496,91.047,90.903,110.1]
[1645199170498,2.6293831,91.046,90.91,16.4942]
[1645199170698,20.2468062,91.048,90.921,5.54]
[1645199170898,27.05014559,91.066,90.923,55.19370952]
[1645199171097,18.41476654,91.047,90.924,6.0]
[1645199171298,5.495,91.046,90.924,6.0]
[1645199171499,12.82,91.04,90.923,55.19370952]
[1645199171698,16.4979,91.03,90.923,55.19370952]
[1645199171906,11.495,91.029,90.923,55.19370952]
[1645199172111,0.25,91.028,90.923,55.19370952]
[1645199172311,5.495,91.027,90.923,55.19370952]
[1645199172609,6.25,91.026,90.923,55.19370952]
[1645199172810,6.0,91.026,90.924,0.25]
[1645199173007,6.0,91.026,90.925,5.496]
[1645199173207,6.0,91.048,90.926,0.25]
[1645199173408,6.0,91.048,90.927,115.595]
[1645199173609,18.41476654,91.083,90.931,110.1]
[1645199173808,18.41476654,91.083,90.93,12.82]
[1645199173809,18.41476654,91.083,90.951,110.1]
[1645199174009,16.6562062,91.091,90.961,110.1]
[1645199174208,16.6562062,91.091,90.963,110.1]
[1645199174409,16.6562062,91.11,90.916,13.12275875]
[1645199174612,16.7727,91.119,90.833,358.7633]
[1645199174613,5.0,91.042,90.833,358.7633]
[1645199174813,12.82,91.03,90.882,70.139]
[1645199175010,16.5047,91.0,90.882,70.139]
[1645199175220,110.1,90.998,90.882,70.139]
[1645199175410,110.1,90.998,90.883,47.68935542]
[1645199175411,110.1,90.996,90.883,47.68935542]
[1645199175610,5.0,90.992,90.883,47.68935542]
[1645199175832,6.25,90.991,90.883,47.68935542]
[1645199176232,18.318,90.99,90.883,47.68935542]
[1645199176431,6.25,90.989,90.884,110.1]
[1645199176633,5.498,90.988,90.884,110.1]
[1645199176833,6.25,90.987,90.883,47.68935542]
[1645199177031,5.498,90.986,90.883,47.68935542]
[1645199177243,64.52,90.984,90.856,16.7935]
[1645199177432,4.28897,90.972,90.792,16.6167]
[1645199177632,5.0,90.942,90.77,76.4551]
[1645199177834,12.82,90.93,90.787,16.2138]
[1645199178036,11.752,90.929,90.788,5.502]
[1645199178535,6.25,90.929,90.812,110.1]
[1645199178739,6.0,90.928,90.812,110.1]
[1645199178935,0.25,90.927,90.812,110.1]
[1645199179135,0.25,90.927,90.813,23.5433]
[1645199179334,0.25,90.927,90.814,110.1]
[1645199179633,0.25,90.927,90.814,5.502]
[1645199179835,5.0,90.952,90.813,23.5433]
[1645199179836,5.502,90.926,90.813,23.5433]
[1645199180032,6.25,90.925,90.813,23.5433]
[1645199180233,11.752,90.925,90.813,23.5433]
[1645199180834,31.34943444,90.925,90.813,23.5433]
[1645199181233,5.502,90.925,90.813,23.5433]
[1645199181436,19.59743444,90.944,90.814,5.502]
[1645199181635,5.502,90.953,90.814,115.602]
[1645199182034,26.44767888,90.953,90.814,115.602]
[1645199182437,26.44767888,90.953,90.831,110.1]
[1645199182635,12.82,90.97,90.832,5.501]
[1645199182835,5.5,90.972,90.834,110.1]
[1645199183036,5.5,90.972,90.836,110.1]
[1645199183237,5.5,90.984,90.838,110.1]
[1645199183437,5.5,90.984,90.87,16.501]
[1645199183637,20.94567888,90.996,90.871,48.4675]
[1645199183836,20.75696222,90.983,90.871,48.4675]
[1645199184035,12.82,90.98,90.871,48.4675]
[1645199184235,5.499,90.979,90.871,48.4675]
[1645199184436,5.0,90.972,90.871,48.4675]
[1645199184639,12.82,90.97,90.872,41.52934389]
[1645199184839,6.25,90.969,90.872,41.52934389]
[1645199185238,27.00696222,90.969,90.872,41.52934389]
[1645199185840,20.75696222,90.968,90.872,41.52934389]
[1645199186039,6.25,90.967,90.872,41.52934389]
[1645199186339,20.75696222,90.966,90.873,0.25]
[1645199186539,6.0,90.965,90.872,41.52934389]
[1645199186739,5.499,90.964,90.872,41.52934389]
[1645199186939,6.0,90.963,90.872,41.52934389]
[1645199187139,12.544,90.95,90.872,41.52934389]
[1645199187342,6.0,90.949,90.872,41.52934389]
[1645199187740,21.00696222,90.948,90.872,41.52934389]
[1645199187939,6.0,90.947,90.872,41.52934389]
[1645199188140,5.749,90.946,90.872,41.52934389]
[1645199188340,6.0,90.945,90.872,41.52934389]
[1645199188540,45.65139487,90.944,90.872,41.52934389]
[1645199188740,12.82,90.94,90.872,41.52934389]
[1645199188943,5.0,90.932,90.872,41.52934389]
[1645199189142,11.75,90.931,90.872,41.52934389]
[1645199189341,32.50696222,90.931,90.872,41.52934389]
[1645199189544,53.64572522,90.931,90.872,41.52934389]
[1645199189742,12.82,90.92,90.872,41.52934389]
[1645199189942,11.75,90.919,90.872,41.52934389]
[1645199190254,32.50696222,90.919,90.872,41.52934389]
[1645199190444,20.75696222,90.918,90.872,41.52934389]
[1645199190644,6.25,90.917,90.872,41.52934389]
[1645199191247,6.0,90.916,90.872,41.52934389]
[1645199191444,0.25,90.915,90.872,41.52934389]
[1645199192543,6.0,90.937,90.872,41.52934389]
[1645199192746,6.0,90.937,90.873,0.11193997]
[1645199192946,20.75696222,90.936,90.873,0.11193997]
[1645199193246,110.1,90.929,90.873,0.11193997]
[1645199193444,110.1,90.927,90.873,0.11193997]
[1645199193645,5.0,90.922,90.873,0.11193997]
[1645199193844,12.82,90.91,90.873,0.11193997]
[1645199194046,11.501,90.909,90.873,0.11193997]
[1645199194250,32.639763,90.909,90.873,0.11193997]
[1645199194443,22.36473999,90.908,90.873,0.11193997]
[1645199194646,11.501,90.907,90.873,0.11193997]
[1645199194844,0.25,90.906,90.873,0.11193997]
[1645199195044,5.501,90.905,90.873,0.11193997]
[1645199195245,6.25,90.904,90.873,0.11193997]
[1645199195450,12.82,90.89,90.873,0.11193997]
[1645199195646,6.25,90.889,90.873,0.11193997]
[1645199195848,5.501,90.888,90.818,0.11193997]
[1645199196147,28.36473999,90.887,90.818,0.11193997]
[1645199196346,5.503,90.886,90.818,0.11193997]
[1645199196647,6.25,90.885,90.818,0.11193997]
[1645199196845,5.503,90.884,90.818,0.11193997]
[1645199197045,6.25,90.883,90.818,0.11193997]
[1645199197245,5.503,90.882,90.818,0.11193997]
[1645199197445,6.25,90.881,90.818,0.11193997]
[1645199197747,6.0,90.881,90.818,0.11193997]
[1645199197950,22.11473999,90.88,90.818,0.11193997]
[1645199198145,6.0,90.879,90.818,0.11193997]
[1645199198546,16.11473999,90.878,90.818,0.11193997]
[1645199198747,6.0,90.879,90.818,0.11193997]
[1645199198947,0.25,90.878,90.818,0.11193997]
[1645199199146,5.503,90.911,90.818,0.11193997]
[1645199199347,5.502,90.919,90.818,49.65723997]
[1645199199549,12.82,90.93,90.818,49.65723997]
[1645199199947,29.336,90.93,90.818,49.65723997]
[1645199200149,18.5093799,90.929,90.818,49.65723997]
[1645199200349,6.0,90.928,90.818,49.65723997]
[1645199200748,18.5093799,90.927,90.818,49.65723997]
[1645199200953,6.0,90.926,90.818,49.65723997]
[1645199201548,6.0,90.926,90.819,110.1]
[1645199201749,6.0,90.926,90.82,0.25]
[1645199202049,6.0,90.926,90.82,0.36193997]
[1645199202253,18.5093799,90.946,90.82,0.36193997]
[1645199202254,6.0,90.945,90.821,5.502]
[1645199202450,6.0,90.945,90.822,0.25]
[1645199202650,24.5093799,90.945,90.823,5.501]
[1645199202850,24.5093799,90.945,90.824,0.25]
[1645199203183,24.5093799,90.945,90.825,5.501]
[1645199203480,24.5093799,90.945,90.826,0.25]
[1645199203497,5.501,90.944,90.82,22.97263997]
[1645199203654,12.82,90.94,90.82,22.97263997]
[1645199203851,11.501,90.939,90.821,0.25]
[1645199204050,24.5093799,90.939,90.821,0.25]
[1645199204451,110.1,90.937,90.821,0.25]
[1645199204660,121.851,90.936,90.82,22.97263997]
[1645199204852,160.74687577,90.936,90.82,22.97263997]
[1645199205051,36.26649267,90.935,90.82,22.97263997]
[1645199205252,11.751,90.934,90.82,22.97263997]
[1645199205452,12.82,90.93,90.82,39.48513997]
[1645199205658,12.82,90.93,90.821,110.35]
[1645199205659,6.25,90.929,90.821,110.35]
[1645199206052,6.25,90.929,90.822,0.11193997]
[1645199207052,0.25,90.929,90.822,0.11193997]
[1645199207253,18.5093799,90.953,90.822,0.11193997]
[1645199207452,1.48789033,90.965,90.822,110.21193997]
[1645199207652,1.48789033,90.973,90.824,110.1]
[1645199207852,48.61314065,90.967,90.826,110.1]
[1645199208053,48.61314065,90.967,90.828,110.1]
[1645199208255,5.5,90.978,90.83,110.1]
[1645199208461,5.5,90.978,90.852,110.1]
[1645199208652,2.6293831,90.995,90.861,64.52]
[1645199208854,1.48789033,91.016,90.868,110.1]
[1645199209054,1.48789033,91.022,90.881,110.1]
[1645199209256,42.76969666,91.021,90.883,110.1]
[1645199209451,42.76969666,91.021,90.885,110.1]
[1645199209651,42.76969666,91.021,90.921,110.1]
[1645199209853,6.0,91.02,90.923,110.1]
[1645199210152,6.0,91.02,90.924,0.25]
[1645199210356,42.76969666,91.021,90.925,110.1]
[1645199210653,6.0,91.02,90.927,110.1]
[1645199210857,6.0,91.02,90.928,0.25]
[1645199211055,12.82,91.04,90.928,0.25]
[1645199211258,12.82,91.04,90.93,16.4942]
[1645199211455,1.48789033,91.052,90.931,110.35]
[1645199211656,16.4896,91.07,90.932,5.495]
[1645199211657,12.82,91.06,90.932,5.495]
[1645199211855,12.82,91.06,90.933,0.25]
[1645199212054,56.25959014,91.059,90.933,0.25]
[1645199212255,116.1,91.058,90.933,110.46193997]
[1645199212454,5.494,91.057,90.933,110.46193997]
[1645199212654,116.1,91.056,90.935,110.1]
[1645199212856,5.494,91.055,90.937,110.1]
[1645199213164,6.0,91.054,90.939,110.1]
[1645199213360,5.494,91.053,90.95,16.4911]
[1645199213558,6.0,91.052,90.951,43.14101582]